bitfinex-derivatives/quotes_ETHF0:USTF0_20240923
["timestamp","ask_amount","ask_price","bid_price","bid_amount"]
[1727065059256,4.70291,2677.9,2677.4,40.8]
[1727065059860,4.3295,2677.9,2677.4,40.8]
[1727065060263,4.70291,2677.9,2677.4,40.8]
[1727065060763,5.67546581,2677.9,2677.4,40.8]
[1727065061462,4.70291,2677.9,2677.4,40.8]
[1727065061663,4.3295,2677.9,2677.4,40.8]
[1727065061863,2.04,2677.5,2677.4,40.8]
[1727065062066,2.04,2677.5,2676.9,3.2078]
[1727065062067,0.37347,2677.4,2676.9,3.2078]
[1727065062268,2.41269,2677.3,2676.8,2.0434]
[1727065062465,2.41269,2677.3,2676.9,40.8]
[1727065062766,2.04,2677.2,2676.9,40.8]
[1727065063159,2.41351,2677.2,2676.9,40.8]
[1727065064072,2.04,2677.2,2676.9,40.8]
[1727065064370,2.4135,2677.2,2676.9,40.8]
[1727065064863,2.04,2677.2,2676.9,40.8]
[1727065065063,2.0392,2677.3,2676.9,40.8]
[1727065065263,2.0392,2677.3,2677.0,2.0302]
[1727065065463,2.0392,2677.3,2677.0,5.238]
[1727065067974,2.0392,2677.3,2677.1,40.8]
[1727065069380,3.01175581,2677.3,2677.1,40.8]
[1727065069673,2.0392,2677.3,2677.1,40.8]
[1727065069966,3.01175581,2677.3,2677.1,40.8]
[1727065071173,0.97255581,2677.2,2677.1,40.8]
[1727065071369,3.38524581,2677.3,2677.1,40.8]
[1727065071571,0.97255581,2677.2,2677.1,40.8]
[1727065071969,0.37353,2677.1,2676.8,2.0434]
[1727065072176,1.34534722,2677.1,2676.8,2.0434]
[1727065072472,3.98471258,2677.3,2676.8,2.0434]
[1727065072473,3.01101722,2677.3,2677.0,3.2078]
[1727065072675,0.97181722,2677.5,2677.0,3.58132]
[1727065072872,0.97181722,2677.5,2677.1,2.1827]
[1727065073373,3.18001722,2677.6,2677.2,2.0874]
[1727065073585,2.2082,2677.6,2677.3,2.55858]
[1727065074073,2.2082,2677.6,2677.3,2.1851]
[1727065074467,3.03371722,2677.7,2677.3,5.76639]
[1727065074968,3.40714722,2677.7,2677.3,5.76639]
[1727065075164,0.97181722,2677.7,2677.4,0.37347]
[1727065075471,0.97181722,2677.7,2677.3,5.3929]
[1727065075670,0.97181722,2677.9,2677.5,0.37345]
[1727065075874,0.97181722,2677.9,2677.6,2.1401]
[1727065076072,3.55341722,2678.0,2677.7,2.1168]
[1727065076372,3.18001722,2678.0,2677.7,2.49022]
[1727065076577,3.18001722,2678.0,2677.8,2.1912]
[1727065077071,2.2082,2678.0,2677.8,2.1912]
[1727065077276,3.18001722,2678.0,2677.8,2.1912]
[1727065078671,2.2082,2678.0,2677.8,2.1912]
[1727065078867,3.18001722,2678.0,2677.8,2.1912]
[1727065079286,3.55340722,2678.0,2677.8,2.1912]
[1727065080272,2.04,2677.9,2677.3,3.2078]
[1727065080470,5.19041722,2677.9,2677.6,3.2078]
[1727065080676,0.37343,2677.8,2677.6,3.2078]
[1727065081171,0.37343,2677.8,2677.4,2.1738]
[1727065081377,0.37343,2677.7,2677.4,2.1738]
[1727065081672,1.34523722,2677.8,2677.4,2.1738]
[1727065081872,2.04,2677.7,2677.4,2.1738]
[1727065082279,2.1465,2677.6,2677.4,2.1738]
[1727065082476,4.2173,2677.5,2677.3,3.2078]
[1727065082670,4.59077,2677.5,2677.3,3.2078]
[1727065082983,5.56258722,2677.5,2677.3,3.2078]
[1727065083180,5.18911722,2677.5,2677.3,3.2078]
[1727065084882,0.97181722,2677.4,2677.0,6.3874]
[1727065085097,1.34529722,2677.4,2677.0,6.3874]
[1727065085278,0.97181722,2677.3,2677.0,6.3874]
[1727065085972,0.97181722,2677.2,2677.0,9.5952]
[1727065086587,0.97181722,2677.2,2677.0,7.5201]
[1727065087588,1.45883372,2677.2,2677.0,7.5201]
[1727065087977,1.45883372,2677.1,2677.0,5.2858]
[1727065088185,1.45883372,2677.1,2677.0,3.2078]
[1727065088391,1.64569499,2677.1,2677.0,3.2078]
[1727065089591,2.13237385,2677.1,2676.9,40.8]
[1727065089785,2.13237385,2677.1,2676.7,2.1293]
[1727065089786,6.91480127,2677.0,2676.7,2.1293]
[1727065090091,1.64748187,2676.9,2676.7,2.1293]
[1727065090293,1.46060595,2676.8,2676.7,2.1293]
[1727065090677,1.46060595,2676.8,2676.7,40.8]
[1727065090678,2.02105562,2676.8,2676.7,40.8]
[1727065090880,0.18688967,2676.8,2676.7,40.8]
[1727065091085,2.13240225,2676.8,2676.7,40.8]
[1727065091593,1.46021988,2676.8,2676.7,40.8]
[1727065091791,1.46021988,2676.8,2676.7,42.9845]
[1727065093391,0.97357294,2676.8,2676.7,43.35807]
[1727065093579,0.97357294,2676.8,2676.7,42.9845]
[1727065093786,0.97357294,2676.8,2676.7,43.35807]
[1727065094182,0.97357294,2676.8,2676.7,47.09407]
[1727065094387,0.97357294,2677.0,2676.7,54.7605]
[1727065094584,0.97357294,2677.2,2677.0,0.37352]
[1727065094985,0.97357294,2677.2,2677.0,4.10872]
[1727065095185,1.46021988,2677.3,2677.0,4.10872]
[1727065095186,0.97357294,2677.1,2677.0,4.10872]
[1727065095390,0.97357294,2677.1,2677.0,0.37352]
[1727065095586,1.46021988,2677.2,2677.0,3.7352]
[1727065095587,0.97357294,2677.2,2677.0,3.7352]
[1727065096301,0.97357294,2677.2,2676.9,3.58134]
[1727065096490,0.97357294,2677.2,2676.9,7.31654]
[1727065096697,0.97357294,2677.2,2676.9,7.31653]
[1727065096883,0.97357294,2677.2,2676.9,3.58133]
[1727065097083,0.97357294,2677.2,2677.1,0.37351]
[1727065097291,0.97357294,2677.4,2677.2,0.3735]
[1727065097495,0.97357294,2677.4,2677.2,3.5813]
[1727065097695,0.97357294,2677.4,2677.2,3.2078]
[1727065098593,0.97357294,2677.4,2677.2,3.5813]
[1727065098900,0.97357294,2677.4,2677.2,3.2078]
[1727065099098,0.97357294,2677.3,2677.2,3.2078]
[1727065100190,1.83370988,2677.3,2677.2,3.2078]
[1727065100390,1.83370988,2677.3,2676.7,46.75899902]
[1727065100391,0.3735,2677.2,2676.9,3.2078]
[1727065100603,0.9748655,2677.1,2676.9,3.2078]
[1727065101292,1.3483855,2677.1,2676.9,3.2078]
[1727065101493,0.37353,2677.0,2676.9,3.2078]
[1727065101795,2.31905258,2677.0,2676.7,40.8]
[1727065102001,0.97475993,2676.8,2676.7,40.8]
[1727065102894,0.97475993,2676.8,2676.7,41.17357]
[1727065103091,0.97475993,2676.9,2676.7,40.8]
[1727065103289,0.97475993,2676.8,2676.7,40.8]
[1727065104096,0.97475993,2676.8,2676.7,41.17357]
[1727065104291,0.97475993,2676.9,2676.7,41.17357]
[1727065104496,0.97475993,2676.8,2676.7,44.38137]
[1727065104693,0.97475993,2676.8,2676.7,44.0078]
[1727065105806,0.97475993,2676.8,2676.7,44.38137]
[1727065106002,0.97475993,2676.8,2676.7,44.0078]
[1727065108004,0.97475993,2676.8,2676.7,44.38137]
[1727065108594,2.31903258,2677.1,2676.7,47.7438]
[1727065108595,0.97475993,2677.1,2676.7,47.7438]
[1727065108805,0.97475993,2677.1,2676.9,0.37354]
[1727065109004,0.97475993,2677.0,2676.8,3.2078]
[1727065109200,1.83567989,2676.9,2676.8,3.2078]
[1727065109401,2.02255279,2676.9,2676.8,3.2078]
[1727065109705,1.83567989,2676.9,2676.8,3.2078]
[1727065109905,2.02255157,2676.9,2676.8,3.2078]
[1727065110104,1.46213989,2676.9,2676.8,3.2078]
[1727065110306,1.46213989,2676.9,2676.7,40.8]
[1727065110607,0.97351888,2676.8,2676.7,40.8]
[1727065111002,0.97351888,2676.8,2676.7,44.90957]
[1727065111202,0.97351888,2676.9,2676.8,0.37356]
[1727065111505,0.97351888,2676.9,2676.8,3.58136]
[1727065111902,4.44262258,2677.2,2676.8,6.9438]
[1727065111903,0.97351888,2677.1,2676.8,6.9438]
[1727065112102,1.46213989,2677.2,2677.1,0.37351]
[1727065112103,0.97351888,2677.2,2677.1,0.37351]
[1727065112404,1.08021888,2677.2,2677.1,3.2078]
[1727065112594,1.08021888,2677.2,2677.0,0.37352]
[1727065112799,1.08021888,2677.2,2677.1,3.2078]
[1727065113611,1.08021888,2677.2,2677.1,3.58131]
[1727065114208,0.1067,2677.2,2677.1,13.31651]
[1727065114709,0.1067,2677.2,2677.1,16.43850902]
[1727065115396,0.97351888,2677.6,2677.5,0.37346]
[1727065115609,3.01351888,2677.6,2677.5,3.2078]
[1727065115808,2.04,2677.6,2677.5,3.2078]
[1727065116012,3.50213989,2677.6,2677.5,3.2078]
[1727065116203,0.37352,2677.1,2676.9,2.0762]
[1727065116403,0.97459749,2677.1,2676.9,2.0762]
[1727065116608,0.97459749,2677.2,2677.0,3.7352]
[1727065116811,0.97459749,2677.3,2677.1,3.2078]
[1727065117111,0.97459749,2677.2,2677.1,3.2078]
[1727065117307,2.04,2677.2,2676.8,3.2078]
[1727065117509,1.46152683,2676.9,2676.7,40.8]
[1727065117708,0.97435188,2676.8,2676.7,40.8]
[1727065118214,0.97435188,2676.9,2676.7,44.0078]
[1727065118411,0.97435188,2676.8,2676.7,44.0078]
[1727065118916,0.97435188,2676.9,2676.7,44.0078]
[1727065119113,0.97435188,2677.2,2677.0,0.37353]
[1727065119417,0.97435188,2677.3,2677.1,2.1767]
[1727065119605,0.97435188,2677.2,2677.1,2.1767]
[1727065120511,5.87334192,2677.2,2676.7,40.8]
[1727065120714,1.46346514,2677.0,2676.9,3.2078]
[1727065121110,3.63746514,2677.0,2676.9,3.2078]
[1727065121305,9.41266514,2677.0,2676.7,40.8]
[1727065121509,9.41266514,2677.0,2675.7,10.0640373]
[1727065121510,6.71126514,2676.8,2676.1,0.96999902]
[1727065121812,0.97590513,2676.4,2676.0,5.74067]
[1727065122012,0.97590513,2676.5,2676.1,40.8]
[1727065122206,0.97590513,2676.5,2676.3,3.2078]
[1727065122407,0.97590513,2676.7,2676.3,3.58141]
[1727065122606,0.97590513,2676.7,2676.4,2.1592]
[1727065122915,5.58915646,2676.9,2676.6,5.2478]
[1727065122916,0.97590513,2676.8,2676.6,5.2478]
[1727065123214,0.97590513,2676.9,2676.6,8.9838]
[1727065123511,0.18687636,2677.0,2676.6,8.9838]
[1727065123512,1.16278149,2677.0,2676.6,8.9838]
[1727065123714,1.16278149,2677.0,2676.9,3.2078]
[1727065124511,0.18687636,2677.0,2676.9,3.2078]
[1727065125213,1.16278149,2677.0,2676.9,3.2078]
[1727065125418,3.78463405,2677.0,2676.9,3.2078]
[1727065125715,3.78463405,2677.0,2676.9,44.0078]
[1727065126019,3.97149396,2677.0,2676.9,44.0078]
[1727065126316,2.50763627,2677.0,2676.9,44.0078]
[1727065126522,3.97119263,2677.0,2676.9,44.0078]
[1727065126910,3.29643066,2677.0,2676.9,44.0078]
[1727065127409,3.78433272,2677.0,2676.9,44.0078]
[1727065127721,2.50764181,2677.0,2676.9,44.0078]
[1727065128120,8.19414058,2677.0,2676.9,3.2078]
[1727065128313,10.13696422,2677.0,2676.4,5.23929902]
[1727065128514,0.97582001,2676.6,2676.5,40.8]
[1727065129021,0.97582001,2676.7,2676.5,40.8]
[1727065129519,1.46373002,2676.7,2676.6,3.2078]
[1727065129719,1.46373002,2676.7,2676.5,40.8]
[1727065129910,0.97574296,2676.6,2676.5,40.8]
[1727065130111,0.97574296,2676.6,2676.5,47.1736]
[1727065130317,0.97574296,2676.9,2676.7,0.37357]
[1727065130518,3.13194296,2677.1,2676.8,3.58135]
[1727065130720,3.13194296,2677.1,2676.9,4.2311]
[1727065131018,0.97574296,2677.2,2676.9,4.2311]
[1727065131223,0.97574296,2677.2,2677.1,3.2078]
[1727065131423,3.66823002,2677.3,2677.1,3.2078]
[1727065131625,1.65057678,2677.2,2677.1,3.2078]
[1727065131921,1.46373002,2677.2,2677.1,3.2078]
[1727065133625,0.18685273,2677.2,2677.1,3.2078]
[1727065134029,1.65115346,2677.2,2677.0,3.2078]
[1727065134224,0.97620374,2677.1,2677.0,3.2078]
[1727065134836,1.65115346,2677.2,2676.7,4.18619041]
[1727065135031,0.97583599,2676.9,2676.7,3.2078]
[1727065135531,2.0991,2676.8,2676.7,3.2078]
[1727065135936,3.07493599,2676.8,2676.7,3.2078]
[1727065137642,2.0991,2676.8,2676.7,3.2078]
[1727065138137,2.0991,2676.8,2676.7,7.31736]
[1727065138138,0.975815,2676.8,2676.7,7.31736]
[1727065138337,0.975815,2676.9,2676.7,7.31736]
[1727065138538,1.46430073,2677.0,2676.7,3.58136]
[1727065138539,0.975815,2676.8,2676.7,3.58136]
[1727065138737,0.975815,2676.9,2676.7,3.58136]
[1727065138935,0.975815,2676.8,2676.7,3.58136]
[1727065139133,0.975815,2676.8,2676.7,6.9438]
[1727065139331,1.349375,2676.8,2676.7,3.2078]
[1727065139533,1.83786073,2676.8,2676.7,3.2078]
[1727065139839,1.83786073,2676.8,2676.6,2.0296]
[1727065139840,0.56043868,2676.8,2676.6,2.0296]
[1727065140038,3.50435024,2676.7,2676.6,2.0296]
[1727065140238,0.3736,2676.5,2676.4,3.2078]
[1727065140443,3.99129877,2676.5,2676.1,2.1379]
[1727065140646,1.46293448,2676.2,2676.0,3.2078]
[1727065140939,5.09809366,2676.1,2676.0,3.2078]
[1727065141329,5.09809366,2676.1,2676.0,44.0078]
[1727065141640,5.58573448,2676.1,2676.0,44.0078]
[1727065141860,5.09754199,2676.1,2676.0,44.0078]
[1727065142139,5.09748644,2676.1,2676.0,44.0078]
[1727065142334,4.1228,2676.1,2676.0,44.0078]
[1727065142640,5.95938448,2676.1,2676.0,3.2078]
[1727065143135,6.1463139,2676.1,2676.0,3.2078]
[1727065143338,0.37367,2676.0,2675.7,40.8]
[1727065143533,1.34763519,2676.0,2675.7,40.8]
[1727065143934,0.97396519,2676.0,2675.7,40.8]
[1727065144138,1.34764519,2676.0,2675.7,40.8]
[1727065144346,0.3737,2675.8,2675.7,40.8]
[1727065144637,0.37372,2675.7,2675.1,2.2402]
[1727065144844,3.04400324,2675.6,2675.4,3.2078]
[1727065145151,0.97380324,2675.7,2675.4,3.2078]
[1727065145443,0.97380324,2675.8,2675.5,2.0731]
[1727065145841,1.34751324,2675.8,2675.5,2.0731]
[1727065146138,0.97380324,2675.7,2675.1,7.488]
[1727065146341,3.04580324,2675.6,2675.1,7.89489]
[1727065146641,3.04580324,2675.6,2675.4,3.2078]
[1727065146642,2.072,2675.6,2675.4,3.2078]
[1727065146843,2.072,2675.6,2675.1,4.3133]
[1727065146844,2.072,2675.6,2675.1,7.5211]
[1727065147246,2.072,2675.6,2675.2,0.37378]
[1727065147443,2.072,2675.6,2675.1,9.5611]
[1727065147645,2.072,2675.9,2675.4,3.58154]
[1727065147844,2.072,2675.9,2675.7,3.2078]
[1727065148237,0.97380324,2676.1,2675.7,3.2078]
[1727065148435,0.37366,2676.1,2675.7,3.2078]
[1727065148753,2.41365,2676.2,2675.8,40.8]
[1727065148940,2.04,2676.2,2675.8,40.8]
[1727065149238,0.37366,2676.1,2675.8,40.8]
[1727065149942,3.38745324,2676.2,2675.8,40.8]
[1727065150342,2.41365,2676.2,2675.8,40.8]
[1727065150743,3.38745324,2676.2,2675.8,40.8]
[1727065150944,2.41365,2676.2,2675.8,40.8]
[1727065151942,0.37366,2676.1,2675.8,40.8]
[1727065152639,0.37365,2676.1,2675.8,40.8]
[1727065153141,0.37366,2676.1,2675.8,40.8]
[1727065153340,0.37367,2676.0,2675.8,40.8]
[1727065154045,0.37366,2676.1,2675.8,40.8]
[1727065154246,2.41365,2676.2,2675.8,40.8]
[1727065155537,0.37366,2676.1,2675.8,40.8]
[1727065155739,4.3201,2676.3,2675.8,40.8]
[1727065155942,4.3201,2676.3,2675.9,2.0646]
[1727065156751,4.69373,2676.3,2676.0,40.8]
[1727065157148,4.3201,2676.3,2676.0,40.8]
[1727065157350,4.69373,2676.3,2676.0,40.8]
[1727065157551,0.37365,2676.2,2676.0,40.8]
[1727065157750,0.37365,2676.1,2676.0,40.8]
[1727065158555,2.41365,2676.2,2676.0,40.8]
[1727065158748,0.37365,2676.1,2676.0,40.8]
[1727065159153,0.37365,2676.1,2675.7,3.2078]
[1727065159154,0.37367,2676.0,2675.7,3.2078]
[1727065159351,2.04,2676.0,2675.7,3.2078]
[1727065159549,0.3737,2675.8,2675.7,3.2078]
[1727065159850,0.3737,2675.8,2675.7,44.0078]
[1727065160048,2.4881,2675.8,2675.7,44.0078]
[1727065160350,2.4881,2675.8,2675.7,3.2078]
[1727065161146,6.2257,2675.8,2675.7,3.2078]
[1727065161347,8.2657,2675.8,2675.7,3.2078]
[1727065163446,0.37376,2675.4,2675.2,2.1638]
[1727065163844,2.41377,2675.3,2675.2,2.1638]
[1727065164045,6.1786,2675.3,2675.2,2.1638]
[1727065164449,6.55237,2675.3,2675.2,2.1638]
[1727065165549,6.1786,2675.3,2674.9,43.0084]
[1727065165749,0.37379,2675.2,2674.9,40.8]
[1727065166158,0.37379,2675.2,2674.8,2.1986]
[1727065166655,0.3738,2675.1,2674.8,2.1986]
[1727065166958,2.4138,2675.1,2674.8,2.1986]
[1727065167149,2.04,2675.1,2674.8,2.1986]
[1727065167353,2.4138,2675.1,2674.8,2.1986]
[1727065167754,0.37381,2675.0,2674.8,2.1986]
[1727065168561,2.4138,2675.1,2674.8,2.1986]
[1727065168865,0.37381,2675.0,2674.8,2.1986]
[1727065169667,0.37382,2675.0,2674.6,3.2078]
[1727065169962,2.04,2675.1,2674.7,2.0608]
[1727065169963,0.37384,2674.8,2674.7,2.0608]
[1727065170162,0.37384,2674.8,2674.3,4.2031]
[1727065170163,3.58164,2674.8,2674.3,3.2078]
[1727065170459,4.1808,2674.7,2674.4,2.0608]
[1727065170863,4.55465,2674.7,2674.4,2.0608]
[1727065171863,0.37386,2674.6,2674.4,2.0608]
[1727065172663,4.55466,2674.7,2674.4,2.0608]
[1727065172972,0.37387,2674.6,2674.4,2.0608]
[1727065173768,2.04,2674.5,2674.4,2.0608]
[1727065174263,8.987,2674.5,2673.6,3.2078]
[1727065174468,2.04,2674.0,2673.8,2.0368]
[1727065175260,2.04,2674.2,2673.8,2.0368]
[1727065176161,2.41396,2674.0,2673.8,2.0368]
[1727065176463,2.04,2674.0,2673.8,2.0368]
[1727065176669,2.2048,2674.1,2673.8,2.0368]
[1727065176866,2.2048,2674.1,2673.6,3.2078]
[1727065177056,2.04,2673.9,2673.7,2.2046]
[1727065178068,6.1985,2674.4,2673.8,0.37397]
[1727065178259,6.3034,2674.4,2673.8,0.37397]
[1727065178460,6.6773,2674.4,2673.7,2.57858]
[1727065178663,6.6773,2674.4,2674.1,3.2078]
[1727065178864,0.37391,2674.3,2674.1,3.2078]
[1727065179067,2.41392,2674.2,2674.1,3.2078]
[1727065179463,0.37395,2674.0,2673.7,2.2046]
[1727065179667,2.04,2673.9,2673.7,2.2046]
[1727065179871,2.41397,2673.9,2673.7,2.2046]
[1727065180065,2.53068,2673.8,2673.7,2.2046]
[1727065180366,2.53068,2673.8,2673.4,2.2005]
[1727065180367,0.37399,2673.7,2673.4,2.2005]
[1727065180674,2.04,2673.7,2673.5,40.8]
[1727065181269,2.41399,2673.7,2673.6,2.1857]
[1727065181772,2.04,2673.7,2673.6,2.1857]
[1727065183772,2.41399,2673.7,2673.6,2.1857]
[1727065183962,2.04,2673.7,2673.6,2.1857]
[1727065184271,2.41399,2673.7,2673.6,2.1857]
[1727065184479,2.04,2673.7,2673.6,2.1857]
[1727065184770,2.41399,2673.7,2673.6,2.1857]
[1727065185559,0.374,2673.6,2673.2,2.1294]
[1727065185765,2.04,2673.3,2673.2,2.1294]
[1727065186170,2.04,2673.3,2673.2,42.9294]
[1727065186567,2.04,2673.3,2673.2,2.1294]
[1727065186770,0.37403,2673.5,2673.2,2.1294]
[1727065187070,2.41403,2673.5,2673.2,2.1294]
[1727065187271,2.41405,2673.3,2673.2,2.1294]
[1727065187461,2.41405,2673.3,2673.1,2.0268]
[1727065187662,2.04,2673.3,2673.1,2.0268]
[1727065187862,2.0392,2673.2,2673.1,2.0268]
[1727065188767,3.2078,2673.8,2673.1,5.7676]
[1727065189069,4.1679,2673.9,2673.1,2.0268]
[1727065189070,6.58107,2673.9,2673.1,2.0268]
[1727065189269,0.37398,2673.8,2673.3,3.2078]
[1727065189576,0.37398,2673.8,2673.4,42.9867]
[1727065189877,6.58107,2673.9,2673.5,4.1452]
[1727065190067,2.04,2673.6,2673.5,4.1452]
[1727065190965,2.04,2673.6,2673.5,2.0398]
[1727065191469,2.04,2673.6,2673.5,4.1436]
[1727065193872,2.414,2673.6,2673.5,4.1436]
[1727065194067,2.04,2673.6,2673.5,4.1436]
[1727065194674,2.414,2673.6,2673.5,2.0398]
[1727065195177,2.04,2673.6,2673.5,2.0398]
[1727065195369,2.414,2673.6,2673.5,2.0398]
[1727065197173,6.2071,2673.9,2673.5,2.0398]
[1727065197369,6.58107,2673.9,2673.6,4.1761]
[1727065197677,6.2071,2673.9,2673.6,4.1761]
[1727065197974,4.127,2674.5,2673.7,5.78]
[1727065198279,6.998,2674.8,2673.7,5.78]
[1727065198280,2.04,2674.6,2674.2,3.2078]
[1727065198578,2.41387,2674.6,2674.3,4.1911]
[1727065199373,2.04,2674.4,2673.9,3.58176]
[1727065199672,2.04,2674.4,2674.0,2.45675]
[1727065199882,2.04,2674.4,2674.0,2.0828]
[1727065200174,2.04,2674.4,2674.0,2.45674]
[1727065200578,2.04,2674.4,2674.3,0.37391]
[1727065200768,4.127,2674.9,2674.3,3.2078]
[1727065201077,4.127,2674.9,2674.6,3.2078]
[1727065201377,0.37384,2674.8,2674.7,40.8]
[1727065201874,3.7384,2674.8,2674.3,2.0828]
[1727065202073,2.04,2674.4,2674.3,2.0828]
[1727065202272,2.04,2674.4,2674.3,42.8828]
[1727065202979,4.127,2674.9,2674.4,0.37389]
[1727065203173,4.127,2674.9,2674.6,0.37386]
[1727065203373,4.127,2674.9,2674.5,4.3162]
[1727065205079,4.127,2674.9,2674.5,4.69007]
[1727065205276,0.37383,2674.9,2674.5,4.3162]
[1727065206081,2.04,2674.8,2674.3,42.8828]
[1727065206282,2.04,2674.8,2674.4,0.37389]
[1727065206481,2.04,2674.8,2674.6,3.2078]
[1727065206875,2.04,2674.8,2674.4,0.37389]
[1727065207077,2.04,2674.8,2674.3,43.2567]
[1727065207383,2.04,2674.8,2674.4,0.37389]
[1727065207781,2.04,2674.8,2674.5,3.2078]
[1727065208080,0.1067,2674.9,2674.5,3.2078]
[1727065208081,0.1067,2674.9,2674.5,3.58168]
[1727065208376,0.37385,2674.8,2674.3,42.8828]
[1727065209172,2.1467,2674.9,2674.3,2.0828]
[1727065209369,2.0331,2674.7,2674.3,2.0828]
[1727065209576,2.0331,2674.7,2674.4,40.8]
[1727065209887,0.1067,2674.9,2674.5,3.58168]
[1727065210778,0.1067,2674.9,2674.5,3.2078]
[1727065211080,0.48052,2674.9,2674.8,3.2078]
[1727065211281,0.1067,2674.9,2674.8,3.2078]
[1727065211674,0.1067,2674.9,2674.8,15.36004]
[1727065211878,5.10080324,2675.7,2675.5,0.37373]
[1727065212080,1.46094935,2676.0,2675.5,0.37373]
[1727065212081,1.34747324,2676.0,2675.6,2.1621]
[1727065212274,0.37371,2675.8,2675.7,40.8]
[1727065213478,3.58149,2675.9,2675.7,40.8]
[1727065213783,0.37369,2675.9,2675.7,40.8]
[1727065214277,2.04,2676.0,2675.7,40.8]
[1727065214482,2.41367,2676.0,2675.7,40.8]
[1727065215295,3.38747324,2676.0,2675.7,40.8]
[1727065216182,3.01380324,2676.0,2675.7,40.8]
[1727065216578,2.41367,2676.0,2675.7,40.8]
[1727065217883,2.04,2676.0,2675.7,40.8]
[1727065218184,2.0593,2676.1,2675.7,41.17371]
[1727065218389,2.0593,2676.1,2675.7,40.8]
[1727065218579,2.0593,2676.1,2675.7,41.17371]
[1727065219284,2.0593,2676.1,2675.7,40.8]
[1727065219682,2.43296,2676.1,2675.7,40.8]
[1727065219890,2.0593,2676.1,2675.7,40.8]
[1727065220283,2.43296,2676.1,2675.7,40.8]
[1727065220690,2.0593,2676.1,2675.7,40.8]
[1727065220896,2.43296,2676.1,2675.7,40.8]
[1727065221285,2.43296,2676.1,2675.8,3.2078]
[1727065222288,2.0593,2676.1,2675.8,3.2078]
[1727065222987,2.0593,2676.1,2675.9,2.0381]
[1727065223494,2.0593,2676.1,2676.0,40.8]
[1727065226896,2.43296,2676.1,2675.8,5.148]
[1727065227083,2.43296,2676.1,2675.8,3.2078]
[1727065227986,2.0593,2676.1,2675.8,3.2078]
[1727065229689,2.43296,2676.1,2675.8,3.2078]
[1727065231187,2.04,2676.0,2675.8,3.2078]
[1727065231395,1.9697,2675.9,2675.8,3.2078]
[1727065231791,5.7065,2675.9,2675.6,2.1621]
[1727065231991,1.9697,2675.9,2675.6,2.1621]
[1727065232187,0.3737,2675.8,2675.6,2.1621]
[1727065232395,2.34339,2675.9,2675.6,2.1621]
[1727065232789,2.34339,2675.9,2675.5,40.8]
[1727065232790,1.9697,2675.9,2675.5,40.8]
[1727065233198,0.37372,2675.7,2675.5,40.8]
[1727065233492,1.8483,2675.6,2675.5,40.8]
[1727065233790,3.804,2675.6,2675.5,40.8]
[1727065234695,1.8483,2675.6,2675.5,40.8]
[1727065234903,2.32937,2676.0,2675.5,41.17373]
[1727065235086,2.32937,2676.0,2675.6,1.8786]
[1727065235283,2.32937,2676.0,2675.7,1.8494]
[1727065235284,1.9557,2676.0,2675.7,1.8494]
[1727065235493,4.34968935,2676.4,2675.9,3.2078]
[1727065235494,1.9547,2676.4,2675.9,3.2078]
[1727065235797,1.9547,2676.4,2676.0,1.8786]
[1727065235798,3.9189,2676.4,2676.0,1.8786]
[1727065236091,1.9642,2676.4,2676.0,2.25226]
[1727065236606,2.33782,2676.4,2676.0,2.25226]
[1727065236788,2.33782,2676.4,2676.0,1.8786]
[1727065237497,1.9642,2676.4,2676.0,1.8786]
[1727065237798,2.33783,2676.4,2676.0,2.25227]
[1727065238492,2.0235,2676.7,2676.0,3.9186]
[1727065238793,1.9123,2676.7,2676.4,2.04]
[1727065239093,0.37361,2676.4,2676.3,3.2078]
[1727065239692,3.9523,2676.7,2676.3,3.2078]
[1727065239889,0.37361,2676.4,2676.3,3.2078]
[1727065240286,0.37361,2676.4,2676.3,44.0078]
[1727065240493,0.3736,2676.5,2676.3,44.0078]
[1727065240787,2.26179,2676.6,2676.3,44.0078]
[1727065240989,2.26179,2676.6,2676.3,40.8]
[1727065241392,1.8882,2676.6,2676.3,40.8]
[1727065241702,1.9123,2676.7,2676.3,40.8]
[1727065241703,1.9123,2676.7,2676.3,41.17363]
[1727065241893,1.9123,2676.7,2676.3,40.8]
[1727065242090,1.9123,2676.7,2676.4,1.9346]
[1727065243092,1.9123,2676.7,2676.1,4.0487]
[1727065243093,0.37362,2676.4,2676.1,4.0487]
[1727065243493,0.37362,2676.4,2675.7,1.9888]
[1727065243494,2.04,2676.3,2675.7,1.9888]
[1727065243698,1.9931,2676.2,2675.8,40.8]
[1727065243895,1.9931,2676.2,2676.1,3.2078]
[1727065244096,0.97380324,2676.4,2676.0,2.04]
[1727065244298,4.127,2676.9,2676.0,2.04]
[1727065244299,5.58794935,2676.9,2676.2,2.04]
[1727065244503,5.58794935,2676.9,2676.8,0.37356]
[1727065244504,4.127,2676.9,2676.8,0.37356]
[1727065244696,2.21649,2677.3,2676.7,2.04]
[1727065244896,2.21649,2677.3,2676.8,3.9535]
[1727065245200,0.97380324,2677.1,2676.8,3.9535]
[1727065245507,0.97380324,2677.2,2676.8,4.32704]
[1727065245798,5.34394935,2677.3,2676.9,1.9854]
[1727065245799,2.81680324,2677.3,2676.9,1.9854]
[1727065246497,3.883,2677.3,2676.9,1.9854]
[1727065246698,3.883,2677.3,2676.8,3.9535]
[1727065246699,1.34731324,2677.2,2676.8,3.9535]
[1727065247105,2.04,2677.1,2676.6,3.2078]